[Event "EYCC 2017"]
[Site "Mamaia"]
[Date "2017.09.07"]
[Round "3"]
[White "Lomaia, Diana"]
[Black "Zeliantsova, Kseniya"]
[Result "1-0"]
[ECO "B09"]
[WhiteElo "1753"]
[BlackElo "1878"]
[Annotator "NA"]
[PlyCount "168"]
[EventDate "2017.??.??"]
[EventType "swiss"]
[EventCountry "ROU"]
[SourceTitle "playchess.com"]
[Source "ChessBase"]
[SourceQuality "1"]
[TimeControl "40/5400+30:1800+30"]

1. e4 {[%emt 0:00:00]} d6 {[%emt 0:00:05]} 2. d4 {[%emt 0:00:13]} Nf6 {[%emt 0:00:06]} 3. Nc3 {[%emt 0:00:28]} g6 {[%emt 0:00:06]} 4. f4 {[%emt 0:00:19]} Bg7 {[%emt 0:00:11]} 5. Nf3 {[%emt 0:01:00]} c5 {[%emt 0:06:18]} 6. Bb5+ {[%emt 0:03:52]} Bd7 {[%emt 0:01:08]} 7. e5 {[%emt 0:02:06]} Ng4 {[%emt 0:05:55]} 8. Bxd7+ {[%emt 0:03:36]} Qxd7 {[%emt 0:02:03]} 9. d5 {[%emt 0:02:11]} O-O {[%emt 0:21:54]} 10. O-O {[%emt 0:07:44]} Na6 {[%emt 0:06:24]} 11. h3 {[%emt 0:04:38]} Nh6 {[%emt 0:00:05]} 12. Be3 {[%emt 0:00:40]} Nc7 {[%emt 0:04:08]} 13. Qd2 {[%emt 0:04:05]} Nf5 {[%emt 0:02:59]} 14. Bf2 {[%emt 0:03:41]} Rad8 {[%emt 0:10:36]} 15. Rad1 {[%emt 0:05:37]} b6 {[%emt 0:06:03]} 16. Rfe1 {[%emt 0:03:18]} Kh8 {[%emt 0:04:28]} 17. Qe2 {[%emt 0:04:01]} b5 {[%emt 0:07:07]} 18. Ne4 {[%emt 0:09:18]} b4 {[%emt 0:03:36]} 19. c4 {[%emt 0:11:15]} bxc3 {[%emt 0:02:44]} 20. Nxc3 {[%emt 0:06:00]} Rb8 {[%emt 0:00:11]} 21. Ng5 {[%emt 0:04:50]} Qc8 {[%emt 0:05:21]} 22. h4 {[%emt 0:06:47]} Rb4 {[%emt 0:04:15]} 23. g3 {[%emt 0:02:29]} Nd4 {[%emt 0:00:16]} 24. Bxd4 {[%emt 0:07:00]} cxd4 25. Nce4 {[%emt 0:01:45]} dxe5 {[%emt 0:01:11]} 26. d6 {[%emt 0:00:35]} exd6 {[%emt 0:02:48]} 27. Nxd6 {[%emt 0:00:13]} Qd7 {[%emt 0:00:18]} 28. fxe5 {[%emt 0:00:58]} h6 {[%emt 0:01:03]} 29. Nf3 {[%emt 0:01:57]} Qg4 {[%emt 0:01:28]} 30. Kh2 {[%emt 0:00:58]} Kg8 {[%emt 0:01:45]} 31. Rd2 {[%emt 0:01:00]} Rfb8 {[%emt 0:00:26]} 32. b3 {[%emt 0:00:32]} a5 {[%emt 0:00:25]} 33. Qe4 {[%emt 0:00:17]} Qd7 {[%emt 0:00:46]} 34. Rxd4 {[%emt 0:00:56]} Rxd4 {[%emt 0:00:06]} 35. Nxd4 {[%emt 0:00:49]} Rf8 {[%emt 0:01:06]} 36. Qc6 {[%emt 0:01:12]} Qg4 {[%emt 0:00:22]} 37. Qe4 {[%emt 0:00:27]} Qd7 {[%emt 0:00:21]} 38. Qc6 {[%emt 0:00:37]} Qd8 {[%emt 0:00:30]} 39. Re2 {[%emt 0:00:42]} Kh7 {[%emt 0:00:30]} 40. Re1 {[%emt 0:00:00]} Qe7 {[%emt 0:00:36]} 41. Qc5 {[%emt 0:03:35]} a4 {[%emt 0:14:20]} 42. b4 {[%emt 0:04:52]} Ne6 {[%emt 0:06:05]} 43. Nxe6 {[%emt 0:10:23]} Qxe6 {[%emt 0:00:48]} 44. Qc4 {[%emt 0:00:33]} Qd7 {[%emt 0:00:26]} 45. Qd4 {[%emt 0:02:41]} Rc8 {[%emt 0:02:11]} 46. Qd3 {[%emt 0:05:52]} Rc6 {[%emt 0:04:51]} 47. Rf1 {[%emt 0:02:02]} Qe6 {[%emt 0:00:05]} 48. Rf2 {[%emt 0:00:57]} Qxe5 {[%emt 0:01:46]} 49. Ne4 {[%emt 0:01:46]} Qe6 {[%emt 0:01:44]} 50. Nc5 {[%emt 0:00:59]} Qe7 {[%emt 0:00:53]} 51. Qe2 {[%emt 0:00:22]} Qf8 {[%emt 0:02:05]} 52. Qb5 {[%emt 0:00:50]} Rd6 {[%emt 0:00:41]} 53. Qxa4 {[%emt 0:00:19]} Rd4 {[%emt 0:00:27]} 54. Ne6 {[%emt 0:01:02]} Qxb4 {[%emt 0:00:12]} 55. Qxb4 {[%emt 0:00:03]} Rxb4 {[%emt 0:00:04]} 56. Rxf7 {[%emt 0:00:12]} Rb2+ {[%emt 0:01:32]} 57. Kh3 {[%emt 0:00:07]} Rxa2 {[%emt 0:00:10]} 58. Rxg7+ {[%emt 0:00:05]} Kh8 {[%emt 0:00:04]} 59. Rxg6 {[%emt 0:00:22]} Kh7 {[%emt 0:01:12]} 60. h5 {[%emt 0:00:49]} Ra5 {[%emt 0:00:19]} 61. Nf8+ {[%emt 0:00:42]} Kh8 {[%emt 0:00:08]} 62. Rxh6+ {[%emt 0:02:56]} Kg7 {[%emt 0:00:03]} 63. Rg6+ {[%emt 0:00:07]} Kh8 {[%emt 0:01:14]} 64. Rf6 {[%emt 0:01:25]} Rxh5+ {[%emt 0:00:38]} 65. Kg4 {[%emt 0:00:08]} Ra5 {[%emt 0:00:02]} 66. Rf5 {[%emt 0:00:31]} Ra4+ {[%emt 0:00:06]} 67. Kg5 {[%emt 0:00:42]} Ra7 {[%emt 0:00:26]} 68. Ng6+ {[%emt 0:00:25]} Kg7 {[%emt 0:00:09]} 69. Re5 {[%emt 0:00:30]} Ra4 {[%emt 0:00:38]} 70. g4 {[%emt 0:00:15]} Kg8 {[%emt 0:00:04]} 71. Re8+ {[%emt 0:00:34]} Kg7 {[%emt 0:00:03]} 72. Re7+ {[%emt 0:00:04]} Kg8 {[%emt 0:00:04]} 73. Kh6 {[%emt 0:00:37]} Ra7 {[%emt 0:00:31]} 74. Re8+ {[%emt 0:00:05]} Kf7 {[%emt 0:00:06]} 75. Rf8+ {[%emt 0:00:41]} Ke6 {[%emt 0:00:06]} 76. Rf2 {[%emt 0:00:29]} Ra1 {[%emt 0:00:27]} 77. Nf8+ {[%emt 0:00:51]} Ke7 {[%emt 0:00:06]} 78. Ng6+ {[%emt 0:00:13]} Ke6 {[%emt 0:00:03]} 79. Nh4 {[%emt 0:00:09]} Rh1 {[%emt 0:00:22]} 80. Kh5 {[%emt 0:00:11]} Rg1 {[%emt 0:00:17]} 81. g5 {[%emt 0:00:16]} Ke7 {[%emt 0:00:25]} 82. g6 {[%emt 0:00:21]} Ke6 {[%emt 0:00:05]} 83. Rg2 {[%emt 0:00:45]} Ra1 {[%emt 0:00:33]} 84. g7 {[%emt 0:00:16]} Kd5 1-0

[Event "EYCC 2017"]
[Site "Mamaia"]
[Date "2017.09.07"]
[Round "3"]
[White "Ince, Safiye Oyku"]
[Black "Zhurova, Anna"]
[Result "1/2-1/2"]
[ECO "B50"]
[WhiteElo "1737"]
[BlackElo "1864"]
[Annotator "NA"]
[PlyCount "70"]
[EventDate "2017.??.??"]
[EventType "swiss"]
[EventCountry "ROU"]
[SourceTitle "playchess.com"]
[Source "ChessBase"]
[SourceQuality "1"]
[TimeControl "40/5400+30:1800+30"]

1. e4 {[%emt 0:00:00]} c5 {[%emt 0:00:32]} 2. Nf3 {[%emt 0:00:00]} d6 {[%emt 0:00:16]} 3. c3 {[%emt 0:00:00]} Nf6 {[%emt 0:00:06]} 4. Bc4 {[%emt 0:00:00]} Nxe4 {[%emt 0:01:26]} 5. Qa4+ {[%emt 0:00:00]} Nc6 {[%emt 0:00:16]} 6. Bxf7+ {[%emt 0:00:01]} Kxf7 {[%emt 0:00:10]} 7. Qxe4 {[%emt 0:00:05]} d5 {[%emt 0:00:12]} 8. Ng5+ {[%emt 0:05:32]} Kg8 {[%emt 0:01:16]} 9. Qf3 {[%emt 0:00:23]} Ne5 {[%emt 0:01:37]} 10. Qg3 {[%emt 0:01:51]} Qd6 {[%emt 0:01:02]} 11. O-O {[%emt 0:07:35]} h6 {[%emt 0:01:00]} 12. Nh3 {[%emt 0:02:22]} g5 {[%emt 0:06:06]} 13. f4 {[%emt 0:03:59]} Ng6 {[%emt 0:00:17]} 14. d3 {[%emt 0:01:29]} g4 {[%emt 0:00:11]} 15. Nf2 {[%emt 0:01:20]} h5 {[%emt 0:04:34]} 16. Nd1 {[%emt 0:02:26]} Bf5 {[%emt 0:03:54]} 17. Ne3 {[%emt 0:06:20]} e6 {[%emt 0:02:07]} 18. d4 {[%emt 0:02:15]} cxd4 {[%emt 0:00:31]} 19. Nxf5 {[%emt 0:01:26]} exf5 {[%emt 0:00:01]} 20. Qd3 {[%emt 0:00:44]} Qf6 {[%emt 0:00:27]} 21. cxd4 {[%emt 0:01:44]} Bg7 {[%emt 0:02:24]} 22. Qb3 {[%emt 0:02:28]} Qxd4+ {[%emt 0:00:34]} 23. Be3 {[%emt 0:00:22]} Qc4 {[%emt 0:02:04]} 24. Qxb7 {[%emt 0:01:09]} Re8 {[%emt 0:01:44]} 25. Na3 {[%emt 0:08:34]} Qe4 {[%emt 0:02:25]} 26. Bc5 {[%emt 0:05:04]} h4 {[%emt 0:16:06]} 27. Rae1 {[%emt 0:05:17]} Bd4+ {[%emt 0:00:06]} 28. Bxd4 {[%emt 0:00:48]} Qxd4+ {[%emt 0:00:05]} 29. Kh1 {[%emt 0:00:06]} Rxe1 {[%emt 0:00:32]} 30. Rxe1 {[%emt 0:00:06]} h3 {[%emt 0:00:48]} 31. Qc8+ {[%emt 0:10:30]} Nf8 {[%emt 0:04:07]} 32. Qxf5 {[%emt 0:05:06]} hxg2+ {[%emt 0:00:03]} 33. Kxg2 {[%emt 0:00:05]} Rxh2+ {[%emt 0:01:10]} 34. Kxh2 {[%emt 0:00:03]} Qf2+ {[%emt 0:00:03]} 35. Kh1 {[%emt 0:00:06]} Qf3+ {[%emt 0:00:37]} 1/2-1/2

[Event "EYCC 2017"]
[Site "Mamaia"]
[Date "2017.09.07"]
[Round "3"]
[White "Alekseenko, Mariya"]
[Black "Dubovyk, Anastasiia"]
[Result "1/2-1/2"]
[ECO "A13"]
[WhiteElo "1731"]
[BlackElo "1785"]
[Annotator "NA"]
[PlyCount "81"]
[EventDate "2017.??.??"]
[EventType "swiss"]
[EventCountry "ROU"]
[SourceTitle "playchess.com"]
[Source "ChessBase"]
[SourceQuality "1"]
[TimeControl "40/5400+30:1800+30"]

1. c4 e6 2. Nf3 d5 3. b3 Nf6 4. Bb2 Be7 5. d3 O-O 6. g3 c5 7. Bg2 Nc6 8. O-O b6 9. Na3 Bb7 10. Re1 h6 11. Nc2 d4 12. e3 dxe3 13. fxe3 Nd7 14. d4 cxd4 15. exd4 Nb4 16. a3 Nxc2 17. Qxc2 Nf6 18. Ne5 Qc7 19. Bxb7 Qxb7 20. Qg2 Qxg2+ 21. Kxg2 Rac8 22. Rac1 Rfd8 23. b4 Nd7 24. Nxd7 Rxd7 25. Re2 Bf6 26. Re4 a5 27. Kf3 axb4 28. axb4 Ra7 29. c5 bxc5 30. bxc5 Ra2 31. Rc2 Rb8 32. Ree2 Rb3+ 33. Kg2 Ra8 34. Re1 Rc8 35. Rd1 Rb4 36. Rd3 Rcb8 37. Rdd2 Rc8 38. Ba1 Bg5 39. Re2 Bf6 40. Red2 Bg5 41. Re2 1/2-1/2

[Event "EYCC 2017"]
[Site "Mamaia"]
[Date "2017.09.07"]
[Round "3"]
[White "Royal, Shreyas"]
[Black "Popescu, Stefan-Adrian"]
[Result "1-0"]
[ECO "D02"]
[WhiteElo "1700"]
[BlackElo "1180"]
[Annotator "NA"]
[PlyCount "133"]
[EventDate "2017.??.??"]
[EventType "swiss"]
[EventCountry "ROU"]
[SourceTitle "playchess.com"]
[Source "ChessBase"]
[SourceQuality "1"]
[TimeControl "40/5400+30:1800+30"]

1. d4 {[%emt 0:00:00]} d5 {[%emt 0:00:07]} 2. Nf3 {[%emt 0:01:16]} e6 {[%emt 0:00:39]} 3. c4 {[%emt 0:01:10]} c6 {[%emt 0:00:10]} 4. Nc3 {[%emt 0:00:58]} Bd6 {[%emt 0:00:57]} 5. Bg5 {[%emt 0:01:00]} Be7 {[%emt 0:00:30]} 6. Bxe7 {[%emt 0:00:57]} Nxe7 {[%emt 0:00:41]} 7. e3 {[%emt 0:00:43]} f5 {[%emt 0:00:15]} 8. Be2 {[%emt 0:00:21]} O-O {[%emt 0:00:25]} 9. O-O {[%emt 0:00:41]} Nd7 {[%emt 0:00:45]} 10. cxd5 {[%emt 0:00:43]} exd5 {[%emt 0:00:12]} 11. Qb3 {[%emt 0:00:56]} Nf6 {[%emt 0:02:47]} 12. Bd3 {[%emt 0:00:50]} Ne4 {[%emt 0:00:40]} 13. Bxe4 {[%emt 0:00:37]} fxe4 14. Nxe4 {[%emt 0:00:14]} Kh8 {[%emt 0:00:48]} 15. Ng3 {[%emt 0:00:49]} b6 {[%emt 0:02:07]} 16. Ne5 {[%emt 0:01:50]} Bb7 {[%emt 0:03:25]} 17. e4 {[%emt 0:01:06]} Rc8 {[%emt 0:02:17]} 18. Rfd1 {[%emt 0:00:50]} Rb8 {[%emt 0:03:07]} 19. Rac1 {[%emt 0:01:09]} Rc8 {[%emt 0:00:46]} 20. Qa4 {[%emt 0:01:37]} a5 {[%emt 0:00:46]} 21. exd5 {[%emt 0:01:51]} cxd5 {[%emt 0:01:35]} 22. Qd7 {[%emt 0:00:52]} Qxd7 {[%emt 0:01:06]} 23. Nxd7 {[%emt 0:00:22]} Rxc1 {[%emt 0:01:17]} 24. Rxc1 {[%emt 0:00:05]} Rd8 {[%emt 0:00:19]} 25. Nxb6 {[%emt 0:00:26]} Bc6 {[%emt 0:01:10]} 26. Nf5 {[%emt 0:01:58]} Nxf5 {[%emt 0:00:55]} 27. Rxc6 {[%emt 0:00:07]} Nxd4 {[%emt 0:00:26]} 28. Rc5 {[%emt 0:01:38]} Ne2+ {[%emt 0:00:36]} 29. Kf1 {[%emt 0:03:49]} Nf4 {[%emt 0:00:43]} 30. g3 {[%emt 0:00:28]} Nd3 {[%emt 0:00:18]} 31. Rxa5 {[%emt 0:00:22]} Nxb2 {[%emt 0:02:36]} 32. Rxd5 {[%emt 0:00:16]} Rxd5 {[%emt 0:00:09]} 33. Nxd5 {[%emt 0:00:06]} Kg8 {[%emt 0:00:08]} 34. Nb6 {[%emt 0:00:32]} Kf7 {[%emt 0:00:09]} 35. a4 {[%emt 0:00:16]} Nd3 {[%emt 0:00:45]} 36. Ke2 {[%emt 0:00:31]} Nc5 {[%emt 0:00:16]} 37. Ke3 {[%emt 0:00:08]} Ke6 {[%emt 0:00:14]} 38. Kd4 {[%emt 0:00:05]} Kd6 {[%emt 0:00:25]} 39. Kc4 {[%emt 0:00:48]} Kc6 {[%emt 0:00:19]} 40. a5 {[%emt 0:00:00]} Na6 {[%emt 0:00:17]} 41. f4 {[%emt 0:00:35]} h5 {[%emt 0:03:11]} 42. h3 {[%emt 0:00:26]} Kd6 {[%emt 0:00:17]} 43. g4 {[%emt 0:00:19]} hxg4 {[%emt 0:00:51]} 44. hxg4 {[%emt 0:00:07]} g6 {[%emt 0:00:06]} 45. Nd5 {[%emt 0:00:28]} Kd7 {[%emt 0:03:02]} 46. Kb5 {[%emt 0:00:56]} Nb8 {[%emt 0:00:21]} 47. a6 {[%emt 0:00:09]} Nxa6 {[%emt 0:00:10]} 48. Kxa6 {[%emt 0:00:11]} Kd6 {[%emt 0:00:05]} 49. Ne3 {[%emt 0:00:30]} Kc5 {[%emt 0:00:27]} 50. f5 {[%emt 0:00:10]} gxf5 {[%emt 0:00:32]} 51. gxf5 {[%emt 0:00:09]} Kd6 {[%emt 0:00:08]} 52. Kb6 {[%emt 0:00:10]} Ke5 {[%emt 0:00:07]} 53. Kc5 {[%emt 0:00:04]} Kf6 {[%emt 0:00:16]} 54. Kd6 {[%emt 0:00:05]} Kf7 {[%emt 0:00:25]} 55. Ke5 {[%emt 0:00:07]} Ke7 {[%emt 0:01:07]} 56. f6+ {[%emt 0:00:08]} Kf7 {[%emt 0:00:05]} 57. Nf5 {[%emt 0:00:04]} Kf8 {[%emt 0:00:40]} 58. Ke6 {[%emt 0:00:07]} Ke8 {[%emt 0:00:06]} 59. f7+ {[%emt 0:00:13]} Kf8 {[%emt 0:00:07]} 60. Nd6 {[%emt 0:00:06]} Kg7 {[%emt 0:00:28]} 61. Ke7 {[%emt 0:01:23]} Kg6 {[%emt 0:00:50]} 62. f8=Q {[%emt 0:00:09]} Kg5 {[%emt 0:00:12]} 63. Qf3 {[%emt 0:00:06]} Kg6 {[%emt 0:00:23]} 64. Qf4 {[%emt 0:00:05]} Kg7 {[%emt 0:00:31]} 65. Qg5+ {[%emt 0:00:06]} Kh7 {[%emt 0:00:18]} 66. Kf7 {[%emt 0:00:09]} Kh8 {[%emt 0:00:12]} 67. Qh4# 1-0

[Event "EYCC 2017"]
[Site "Mamaia"]
[Date "2017.09.07"]
[Round "3"]
[White "Simic, Anja"]
[Black "Schneider, Jana"]
[Result "0-1"]
[ECO "E34"]
[WhiteElo "1676"]
[BlackElo "2231"]
[Annotator "NA"]
[PlyCount "88"]
[EventDate "2017.??.??"]
[EventType "swiss"]
[EventCountry "ROU"]
[SourceTitle "playchess.com"]
[Source "ChessBase"]
[SourceQuality "1"]
[TimeControl "40/5400+30:1800+30"]

1. d4 {[%emt 0:00:00]} Nf6 {[%emt 0:00:08]} 2. c4 {[%emt 0:00:00]} e6 {[%emt 0:00:07]} 3. Nc3 {[%emt 0:00:00]} Bb4 {[%emt 0:00:11]} 4. Qc2 {[%emt 0:00:05]} d5 {[%emt 0:00:15]} 5. Bg5 $15 {[%emt 0:10:35]} dxc4 {[%emt 0:02:46] LiveBook: 9 Games} 6. e3 {[%emt 0:01:23]} b5 {[%emt 0:02:13]} 7. Nf3 {[%emt 0:04:24]} Bb7 {[%emt 0:03:56]} 8. Be2 {[%emt 0:04:34]} Be4 {[%emt 0:06:18]} 9. Bxf6 {[%emt 0:17:34]} Bxc2 {[%emt 0:00:17]} 10. Bxd8 {[%emt 0:00:11]} Kxd8 {[%emt 0:05:08]} 11. Ne5 {[%emt 0:07:05]} Ke7 {[%emt 0:02:48]} 12. Bf3 {[%emt 0:03:24]} Bxc3+ {[%emt 0:05:24]} 13. bxc3 {[%emt 0:00:11]} c6 {[%emt 0:00:16]} 14. Nxc6+ {[%emt 0:05:48]} Nxc6 {[%emt 0:00:09]} 15. Bxc6 {[%emt 0:00:09]} Rab8 {[%emt 0:00:11]} 16. Kd2 {[%emt 0:01:49]} Bd3 {[%emt 0:01:52]} 17. a3 {[%emt 0:09:12]} a5 {[%emt 0:01:38]} 18. Bf3 {[%emt 0:07:34]} b4 {[%emt 0:00:58]} 19. axb4 {[%emt 0:01:19]} axb4 {[%emt 0:00:08]} 20. Ra7+ {[%emt 0:01:44]} Kf6 {[%emt 0:00:20]} 21. cxb4 {[%emt 0:01:49]} Rxb4 {[%emt 0:00:46]} 22. e4 {[%emt 0:01:52]} Rb2+ {[%emt 0:05:05]} 23. Ke3 {[%emt 0:01:19]} Rhb8 {[%emt 0:01:52]} 24. e5+ {[%emt 0:02:32]} Kg6 {[%emt 0:04:47]} 25. h4 {[%emt 0:00:45]} R8b3 {[%emt 0:02:30]} 26. Rc7 {[%emt 0:09:53]} Bf1+ {[%emt 0:05:41]} 27. Kf4 {[%emt 0:00:43]} Rxf2 {[%emt 0:01:54]} 28. Rg1 {[%emt 0:01:35]} Be2 {[%emt 0:11:06]} 29. Ke4 {[%emt 0:01:53]} f5+ {[%emt 0:09:53]} 30. exf6 {[%emt 0:01:03]} gxf6 {[%emt 0:00:41]} 31. d5 {[%emt 0:01:45]} exd5+ {[%emt 0:17:39]} 32. Kxd5 {[%emt 0:00:12]} Bf1 {[%emt 0:01:22]} 33. Be4+ {[%emt 0:01:05]} f5 {[%emt 0:00:12]} 34. Bf3 {[%emt 0:00:28]} c3 {[%emt 0:01:08]} 35. Rc6+ {[%emt 0:00:26]} Kg7 {[%emt 0:00:32]} 36. Rc7+ {[%emt 0:01:08]} Kf6 {[%emt 0:00:16]} 37. Bh5 {[%emt 0:00:47]} Rd2+ {[%emt 0:02:17]} 38. Kc5 {[%emt 0:00:38]} Rb5+ {[%emt 0:00:47]} 39. Kc6 {[%emt 0:00:09]} Rb1 {[%emt 0:00:21]} 40. Rf7+ {[%emt 0:00:00]} Ke6 {[%emt 0:00:25]} 41. g4 {[%emt 0:11:43]} Bb5+ {[%emt 0:00:32]} 42. Kc7 {[%emt 0:00:30]} Rxg1 {[%emt 0:00:12]} 43. gxf5+ {[%emt 0:00:11]} Ke5 {[%emt 0:00:10]} 44. Re7+ {[%emt 0:00:12]} Kxf5 {[%emt 0:00:12]} 0-1

[Event "EYCC 2017"]
[Site "Mamaia"]
[Date "2017.09.07"]
[Round "3"]
[White "Madej, Marek"]
[Black "Samadov, Read"]
[Result "0-1"]
[ECO "B54"]
[WhiteElo "1652"]
[BlackElo "1848"]
[Annotator "NA"]
[PlyCount "76"]
[EventDate "2017.??.??"]
[EventType "swiss"]
[EventCountry "ROU"]
[SourceTitle "playchess.com"]
[Source "ChessBase"]
[SourceQuality "1"]
[TimeControl "40/5400+30:1800+30"]

1. e4 {[%emt 0:00:00]} c5 {[%emt 0:00:04]} 2. Nf3 {[%emt 0:00:00]} d6 {[%emt 0:00:06]} 3. d4 {[%emt 0:00:17]} cxd4 {[%emt 0:00:10]} 4. Nxd4 {[%emt 0:00:06]} Nf6 {[%emt 0:00:16]} 5. f3 {[%emt 0:00:14]} e5 {[%emt 0:00:35]} 6. Nb3 {[%emt 0:00:14]} Be7 {[%emt 0:01:36]} 7. c4 {[%emt 0:00:52]} a5 {[%emt 0:03:02]} 8. Be3 {[%emt 0:05:21]} a4 {[%emt 0:03:08]} 9. N3d2 {[%emt 0:00:10]} Qa5 {[%emt 0:02:19]} 10. Nc3 {[%emt 0:01:39]} O-O {[%emt 0:02:23]} 11. Qc2 {[%emt 0:01:39]} Nc6 {[%emt 0:02:59]} 12. a3 {[%emt 0:02:09]} Be6 {[%emt 0:06:30]} 13. Be2 {[%emt 0:04:02]} Rfc8 {[%emt 0:03:44]} 14. O-O {[%emt 0:01:55]} Nd7 {[%emt 0:12:30]} 15. b4 {[%emt 0:10:31]} axb3 {[%emt 0:01:59]} 16. Nxb3 {[%emt 0:00:09]} Qd8 {[%emt 0:02:21]} 17. Rfd1 {[%emt 0:00:43]} Na5 {[%emt 0:10:41]} 18. Nxa5 {[%emt 0:04:45]} Rxa5 {[%emt 0:02:27]} 19. Nd5 {[%emt 0:01:59]} Bxd5 {[%emt 0:01:42]} 20. exd5 {[%emt 0:02:42]} Bg5 {[%emt 0:04:11]} 21. Bf2 {[%emt 0:02:15]} b5 {[%emt 0:03:05]} 22. Qa2 {[%emt 0:01:33]} bxc4 {[%emt 0:02:12]} 23. Bxc4 {[%emt 0:00:20]} Qc7 {[%emt 0:02:01]} 24. Bd3 {[%emt 0:00:50]} g6 {[%emt 0:03:22]} 25. Rab1 {[%emt 0:02:51]} Rca8 {[%emt 0:02:00]} 26. Rb3 {[%emt 0:07:01]} Bc1 {[%emt 0:02:31]} 27. Qb1 {[%emt 0:09:56]} Bxa3 {[%emt 0:00:46]} 28. Bb5 {[%emt 0:00:44]} Bc5 {[%emt 0:03:15]} 29. Bc6 {[%emt 0:04:43]} Bxf2+ {[%emt 0:02:25]} 30. Kxf2 {[%emt 0:00:08]} R8a7 {[%emt 0:01:44]} 31. Rc1 {[%emt 0:01:44]} Nc5 {[%emt 0:01:50]} 32. Rb8+ {[%emt 0:01:08]} Kg7 {[%emt 0:00:07]} 33. h3 {[%emt 0:00:48]} Ra1 {[%emt 0:00:27]} 34. Qxa1 {[%emt 0:03:56]} Rxa1 {[%emt 0:00:10]} 35. Rxa1 {[%emt 0:00:03]} Qxb8 {[%emt 0:00:08]} 36. Ra8 {[%emt 0:00:13]} Qb2+ {[%emt 0:00:07]} 37. Kg3 {[%emt 0:00:07]} Nd3 {[%emt 0:00:07]} 38. Kh2 {[%emt 0:00:12]} Nf4 {[%emt 0:00:06]} 0-1

[Event "EYCC 2017"]
[Site "Mamaia"]
[Date "2017.09.07"]
[Round "3"]
[White "Ljepic, Andrej"]
[Black "Rudnev, Andrei"]
[Result "1-0"]
[ECO "C41"]
[WhiteElo "1616"]
[BlackElo "1174"]
[Annotator "NA"]
[PlyCount "109"]
[EventDate "2017.??.??"]
[EventType "swiss"]
[EventCountry "ROU"]
[SourceTitle "playchess.com"]
[Source "ChessBase"]
[SourceQuality "1"]
[TimeControl "40/5400+30:1800+30"]

1. e4 {[%emt 0:00:00]} d6 {[%emt 0:00:08]} 2. d4 {[%emt 0:00:00]} Nf6 {[%emt 0:00:14]} 3. Nc3 {[%emt 0:00:02]} e5 {[%emt 0:00:08]} 4. Nf3 {[%emt 0:02:19]} Nbd7 {[%emt 0:00:33]} 5. Bc4 h6 {[%emt 0:01:58]} 6. h3 {[%emt 0:02:49]} Be7 {[%emt 0:00:16]} 7. Be3 {[%emt 0:00:52]} O-O {[%emt 0:00:35]} 8. O-O {[%emt 0:00:09]} c6 {[%emt 0:00:30]} 9. a4 {[%emt 0:00:17]} Re8 {[%emt 0:00:20]} 10. Qd2 {[%emt 0:04:34]} Qc7 {[%emt 0:01:31]} 11. Rad1 {[%emt 0:01:09]} Nf8 {[%emt 0:01:28]} 12. Nh2 {[%emt 0:07:00]} h5 {[%emt 0:13:21]} 13. f4 {[%emt 0:01:43]} exf4 {[%emt 0:10:05]} 14. Bxf4 {[%emt 0:00:21]} Be6 {[%emt 0:01:02]} 15. Bxe6 {[%emt 0:12:31]} Nxe6 {[%emt 0:00:23]} 16. e5 {[%emt 0:01:24]} Nd5 {[%emt 0:05:14]} 17. Nxd5 {[%emt 0:01:24]} cxd5 {[%emt 0:00:25]} 18. c3 {[%emt 0:10:00]} Bf8 {[%emt 0:04:54]} 19. exd6 {[%emt 0:03:40]} Bxd6 {[%emt 0:02:30]} 20. Bxd6 {[%emt 0:02:24]} Qxd6 {[%emt 0:00:22]} 21. Qf2 {[%emt 0:01:34]} Qd7 {[%emt 0:02:06]} 22. Rde1 {[%emt 0:07:41]} Re7 {[%emt 0:07:07]} 23. Nf3 {[%emt 0:04:12]} Qe8 {[%emt 0:06:52]} 24. Re5 {[%emt 0:01:53]} Nf4 {[%emt 0:04:30]} 25. Rxe7 {[%emt 0:00:21]} Qxe7 {[%emt 0:02:25]} 26. Re1 {[%emt 0:03:59]} Qf6 {[%emt 0:02:54]} 27. Qe3 {[%emt 0:05:34]} b6 {[%emt 0:03:08]} 28. Qe5 {[%emt 0:01:16]} Nxh3+ {[%emt 0:00:24]} 29. Kh1 {[%emt 0:01:43]} Nf2+ {[%emt 0:04:17]} 30. Kg1 {[%emt 0:00:13]} Qxe5 {[%emt 0:01:08]} 31. Nxe5 {[%emt 0:00:57]} Ne4 {[%emt 0:00:32]} 32. c4 {[%emt 0:00:39]} Nf6 {[%emt 0:01:05]} 33. c5 {[%emt 0:02:32]} Rc8 {[%emt 0:03:38]} 34. b4 {[%emt 0:00:55]} Ne4 {[%emt 0:00:59]} 35. Nd7 {[%emt 0:02:11]} Rd8 {[%emt 0:02:55]} 36. c6 {[%emt 0:02:38]} Nf6 {[%emt 0:01:18]} 37. Re7 {[%emt 0:00:49]} Nxd7 {[%emt 0:00:48]} 38. Rxd7 {[%emt 0:00:19]} Rc8 {[%emt 0:00:23]} 39. b5 {[%emt 0:00:00]} g6 {[%emt 0:00:00]} 40. Rxa7 {[%emt 0:00:00]} Kf8 {[%emt 0:02:07]} 41. Rb7 {[%emt 0:00:46]} Ke8 {[%emt 0:00:25]} 42. Rxb6 {[%emt 0:00:11]} f5 {[%emt 0:00:15]} 43. Rb7 {[%emt 0:00:26]} Ra8 {[%emt 0:00:42]} 44. c7 {[%emt 0:00:44]} Kd7 {[%emt 0:00:25]} 45. Rb8 {[%emt 0:00:11]} Kxc7 {[%emt 0:00:34]} 46. Rxa8 {[%emt 0:00:06]} Kb7 {[%emt 0:00:13]} 47. Rg8 {[%emt 0:00:12]} f4 {[%emt 0:00:09]} 48. Rxg6 {[%emt 0:00:11]} h4 {[%emt 0:00:08]} 49. a5 {[%emt 0:00:09]} Ka7 {[%emt 0:00:19]} 50. Rg7+ {[%emt 0:00:18]} Kb8 {[%emt 0:00:07]} 51. a6 {[%emt 0:00:10]} h3 {[%emt 0:00:07]} 52. b6 {[%emt 0:00:10]} h2+ {[%emt 0:00:09]} 53. Kxh2 {[%emt 0:00:04]} Kc8 {[%emt 0:00:13]} 54. a7 {[%emt 0:00:07]} f3 {[%emt 0:00:06]} 55. a8=Q# 1-0